bitfinex/quotes_SOLUSD_20230110
["timestamp","ask_amount","ask_price","bid_price","bid_amount"]
[1673354221082,20.0,15.96,15.951,20.0]
[1673354221288,17.0,15.959,15.946,47.05]
[1673354221508,134.41,15.96,15.947,20.0]
[1673354221724,8.92e-05,15.962,15.947,20.0]
[1673354221936,8.92e-05,15.962,15.948,67.04]
[1673354222148,8.92e-05,15.962,15.949,20.0]
[1673354222453,8.92e-05,15.962,15.951,20.0]
[1673354222668,8.92e-05,15.962,15.952,160.784]
[1673354222871,8.92e-05,15.962,15.953,20.0]
[1673354223083,8.92e-05,15.962,15.955,20.0]
[1673354223499,134.49,15.97,15.955,20.0]
[1673354223709,26.97,15.98,15.96,26.86]
[1673354223920,5.6591892,15.986,15.961,47.0]
[1673354224130,5.6591892,15.986,15.962,20.0]
[1673354224349,5.6591892,15.986,15.963,48.92]
[1673354224569,5.6591892,15.986,15.965,20.0]
[1673354224768,5.6591892,15.986,15.966,66.99]
[1673354224986,5.6591892,15.986,15.966,122.42237035]
[1673354225212,5.6591892,15.986,15.967,20.0]
[1673354225409,5.6591892,15.986,15.968,46.98]
[1673354225615,5.6591892,15.986,15.969,40.0]
[1673354225836,5.6591892,15.986,15.97,46.98]
[1673354226031,5.6591892,15.986,15.972,20.0]
[1673354226241,5.6591892,15.986,15.974,20.0]
[1673354226878,46.93,15.985,15.969,20.0]
[1673354227839,17.0,15.984,15.97,65.45132621]
[1673354228148,5.6591892,15.986,15.971,18.47132621]
[1673354228362,5.6591892,15.986,15.972,46.97]
[1673354228577,5.6591892,15.986,15.973,20.0]
[1673354228788,5.6591892,15.986,15.975,20.0]
[1673354230652,17.0,15.985,15.975,20.0]
[1673354231622,5.6591892,15.986,15.975,20.0]
[1673354232982,17.0,15.985,15.975,20.0]
[1673354234339,17.0,15.985,15.977,20.0]
[1673354234980,17.0,15.984,15.977,20.0]
[1673354235405,17.0,15.985,15.977,20.0]
[1673354237709,17.0,15.985,15.974,46.97]
[1673354237921,17.0,15.985,15.973,20.0]
[1673354239816,5.6591892,15.986,15.973,20.0]
[1673354240030,5.6591892,15.986,15.974,46.97]
[1673354240342,5.6591892,15.986,15.975,20.0]
[1673354243390,17.0,15.985,15.975,20.0]
[1673354244223,36.9339275,16.008,15.976,20.0]
[1673354244422,26.86,16.0,15.98,26.86]
[1673354244633,26.86,16.0,15.982,20.0]
[1673354244970,26.86,16.0,15.984,20.0]
[1673354245169,26.86,16.0,15.985,46.93]
[1673354245384,26.86,16.0,15.986,20.0]
[1673354245912,26.86,16.0,15.985,46.93]
[1673354245913,20.0,15.999,15.985,46.93]
[1673354246647,26.86,16.0,15.986,20.0]
[1673354246858,133.97,16.0,15.986,20.0]
[1673354247168,20.0,15.999,15.985,46.93]
[1673354248330,133.97,16.0,15.986,20.0]
[1673354248541,133.97,16.0,15.985,46.93]
[1673354248745,26.86,15.99,15.981,20.0]
[1673354248939,26.86,15.99,15.977,66.96]
[1673354249150,26.86,15.99,15.974,46.97]
[1673354249462,26.86,15.99,15.977,20.0]
[1673354249680,26.86,15.99,15.974,46.97]
[1673354249996,17.0,15.989,15.977,109.162]
[1673354251496,20.0,15.988,15.977,109.162]
[1673354251693,17.0,15.987,15.977,109.162]
[1673354252112,17.0,15.987,15.974,46.97]
[1673354252320,26.86,15.98,15.962,113.0019]
[1673354252644,65.50825296,15.979,15.962,113.0019]
[1673354252852,37.0,15.978,15.963,67.0]
[1673354253067,35.55825296,15.978,15.963,67.0]
[1673354253387,18.55825296,15.977,15.964,20.0]
[1673354253595,17.0,15.976,15.964,20.0]
[1673354255076,134.41,15.99,15.965,46.99]
[1673354255376,20.0,15.989,15.966,20.0]
[1673354255571,20.0,15.989,15.967,46.99]
[1673354255775,66.92,15.989,15.968,20.0]
[1673354255988,66.92,15.989,15.97,20.0]
[1673354255989,18.55825296,15.987,15.97,20.0]
[1673354256205,18.55825296,15.987,15.971,66.98]
[1673354256432,18.55825296,15.987,15.972,20.0]
[1673354256644,65.48825296,15.987,15.972,20.0]
[1673354257049,18.55825296,15.986,15.972,20.0]
[1673354257254,46.92,15.989,15.972,134.1681]
[1673354257478,20.0,15.988,15.972,134.1681]
[1673354258324,18.55825296,15.987,15.972,134.1681]
[1673354258531,35.55825296,15.987,15.972,134.1681]
[1673354259064,18.55825296,15.986,15.972,134.1681]
[1673354259887,17.0,15.985,15.972,134.1681]
[1673354260308,18.55825296,15.984,15.972,134.1681]
[1673354260533,17.0,15.983,15.972,134.1681]
[1673354262527,17.0,15.983,15.972,114.1681]
[1673354263502,17.0,15.983,15.973,20.0]
[1673354263686,18.55825296,15.984,15.973,20.0]
[1673354263899,18.55825296,15.984,15.974,46.97]
[1673354264865,17.0,15.983,15.974,46.97]
[1673354265604,17.0,15.983,15.973,46.97]
[1673354266545,17.0,15.983,15.973,66.97]
[1673354266951,17.0,15.983,15.974,20.0]
[1673354268339,17.0,15.983,15.973,66.97]
[1673354268948,17.0,15.983,15.974,20.0]
[1673354271071,17.0,15.983,15.973,66.97]
[1673354271591,17.0,15.983,15.974,20.0]
[1673354271799,26.75,15.99,15.976,20.0]
[1673354272326,26.75,15.99,15.977,46.96]
[1673354272855,17.0,15.989,15.977,46.96]
[1673354274618,35.55825296,15.989,15.977,46.96]
[1673354274825,20.0,15.988,15.975,46.96]
[1673354275038,17.0,15.987,15.975,46.96]
[1673354275899,20.0,15.988,15.975,46.96]
[1673354276319,20.0,15.988,15.973,20.0]
[1673354276320,20.0,15.988,15.974,46.97]
[1673354276639,20.0,15.988,15.975,20.0]
[1673354276852,20.0,15.988,15.976,46.96]
[1673354277352,17.0,15.987,15.976,46.96]
[1673354277886,17.0,15.987,15.975,20.0]
[1673354278306,17.0,15.987,15.974,46.97]
[1673354278526,17.0,15.987,15.975,20.0]
[1673354279895,20.0,15.987,15.974,46.97]
[1673354280106,17.0,15.986,15.973,20.0]
[1673354281992,17.0,15.986,15.972,161.1381]
[1673354282423,46.93,15.985,15.972,161.1381]
[1673354282749,26.65,15.98,15.965,46.99]
[1673354282930,17.9750233,15.979,15.966,20.0]
[1673354283255,36.53327626,15.979,15.966,20.0]
[1673354283452,35.55825296,15.979,15.966,20.0]
[1673354283661,35.55825296,15.979,15.965,111.3119]
[1673354284089,17.0,15.979,15.966,20.0]
[1673354284310,17.0,15.979,15.966,66.99]
[1673354285129,17.0,15.979,15.966,20.0]
[1673354286196,26.65,15.98,15.966,20.0]
[1673354286394,63.76650592,15.98,15.966,20.0]
[1673354286604,45.20825296,15.98,15.966,20.0]
[1673354287443,45.20825296,15.98,15.966,66.99]
[1673354287682,17.0,15.979,15.966,20.0]
[1673354288412,35.55825296,15.979,15.966,20.0]
[1673354289686,35.55825296,15.979,15.966,66.99]
[1673354290001,35.55825296,15.979,15.966,20.0]
[1673354292312,17.0,15.979,15.966,20.0]
[1673354292623,35.55825296,15.979,15.966,20.0]
[1673354294389,46.94,15.982,15.966,20.0]
[1673354294390,46.93,15.986,15.967,46.99]
[1673354294608,18.55825296,15.985,15.968,20.0]
[1673354294833,18.55825296,15.985,15.969,66.98]
[1673354295018,18.55825296,15.985,15.97,20.0]
[1673354295234,18.55825296,15.985,15.972,20.0]
[1673354295771,17.0,15.984,15.972,20.0]
[1673354295982,17.0,15.984,15.972,138.7486]
[1673354296825,17.0,15.984,15.972,118.7486]
[1673354297037,18.55825296,15.983,15.972,118.7486]
[1673354297243,17.0,15.982,15.972,118.7486]
[1673354297984,17.0,15.982,15.973,20.0]
[1673354299460,17.0,15.982,15.972,165.7186]
[1673354299771,17.0,15.982,15.973,20.0]
[1673354300528,18.55825296,15.985,15.973,20.0]
[1673354300840,73.67,15.99,15.975,20.0]
[1673354301039,18.55825296,15.987,15.975,20.0]
[1673354302102,18.55825296,15.987,15.977,20.0]
[1673354303153,66.91,15.992,15.977,20.0]
[1673354303368,38.55825296,15.991,15.977,20.0]
[1673354303790,35.55825296,15.99,15.977,20.0]
[1673354307466,35.55825296,15.99,15.977,19.5]
[1673354310914,17.0,15.99,15.978,66.95]
[1673354311124,17.0,15.99,15.979,20.0]
[1673354311573,18.55825296,15.993,15.98,20.0]
[1673354311765,18.55825296,15.993,15.981,20.0]
[1673354312512,66.9,15.997,15.981,19.5]
[1673354312820,18.55825296,15.996,15.981,19.5]
[1673354313018,20.0,15.997,15.981,19.5]
[1673354313443,20.0,15.995,15.981,19.5]
[1673354313652,20.0,15.995,15.98,184.8889]
[1673354313862,17.0,15.994,15.98,184.8889]
[1673354319127,17.0,15.994,15.98,184.3889]
[1673354319548,17.0,15.994,15.98,137.4389]
[1673354320052,17.0,15.994,15.981,46.95]
[1673354320475,17.0,15.994,15.981,66.95]
[1673354320686,17.0,15.994,15.982,20.0]
[1673354320902,17.0,15.994,15.983,46.94]
[1673354321438,18.55825296,15.996,15.984,20.0]
[1673354321628,141.4603,16.0,15.985,46.93]
[1673354322151,20.0,15.999,15.985,46.93]
[1673354322368,141.4603,16.0,15.986,20.0]
[1673354322798,18.55825296,16.0,15.987,66.93]
[1673354323005,46.87,16.007,15.987,186.3533]
[1673354323220,20.0,16.007,15.988,20.0]
[1673354323430,46.87,16.006,15.989,66.92]
[1673354323857,20.0,16.005,15.99,20.0]
[1673354324262,20.0,16.007,15.991,20.0]
[1673354324479,66.87,16.007,15.992,46.91]
[1673354325006,20.0,16.007,15.992,46.91]
[1673354326912,20.0,16.007,15.992,46.41]
[1673354327748,17.0,16.006,15.992,46.41]
[1673354328248,35.55825296,16.006,15.992,46.41]
[1673354328462,20.0,16.005,15.992,46.41]
[1673354328674,17.0,16.004,15.992,46.41]
[1673354328901,17.0,16.004,15.991,66.92]
[1673354329115,17.0,16.004,15.991,20.0]
[1673354329306,20.0,16.003,15.989,46.92]
[1673354329520,17.0,16.002,15.988,46.93]
[1673354329725,17.0,16.004,15.989,20.0]
[1673354329935,17.0,16.004,15.991,20.0]
[1673354330379,17.0,16.004,15.991,40.0]
[1673354330589,17.0,16.004,15.991,20.0]
[1673354330896,17.0,16.004,15.991,40.0]
[1673354331109,17.0,16.004,15.991,20.0]
[1673354331514,17.0,16.004,15.991,40.0]
[1673354331741,17.0,16.004,15.991,20.0]
[1673354332356,17.0,16.004,15.991,40.0]
[1673354332894,17.0,16.004,15.991,20.0]
[1673354333307,17.0,16.004,15.991,40.0]
[1673354333523,17.0,16.004,15.991,20.0]
[1673354333840,17.0,16.004,15.991,40.0]
[1673354334029,17.0,16.004,15.991,20.0]
[1673354334555,17.0,16.004,15.991,40.0]
[1673354334772,17.0,16.004,15.991,20.0]
[1673354334976,17.0,16.004,15.991,40.0]
[1673354335214,17.0,16.004,15.991,20.0]
[1673354335612,17.0,16.004,15.991,40.0]
[1673354335940,17.0,16.004,15.991,20.0]
[1673354337507,17.0,16.004,15.989,66.92]
[1673354338450,17.0,16.004,15.99,20.0]
[1673354338775,20.0,16.003,15.989,46.92]
[1673354338963,26.69,16.0,15.987,119.4233]
[1673354339388,17.0,15.999,15.987,119.4233]
[1673354339603,18.55825296,16.0,15.988,20.0]
[1673354340029,20.0,16.003,15.988,66.93]
[1673354340884,17.0,16.002,15.988,66.93]
[1673354341084,40.0,16.001,15.988,46.93]
[1673354341301,40.0,16.001,15.987,119.4233]
[1673354341302,17.0,16.0,15.987,119.4233]
[1673354342232,17.0,16.0,15.988,20.0]
[1673354342436,46.88,16.004,15.989,20.0]
[1673354342652,46.87,16.006,15.99,66.92]
[1673354343191,46.87,16.006,15.991,20.0]
[1673354343387,46.87,16.007,15.991,20.0]
[1673354343807,46.87,16.008,15.991,20.0]
[1673354344028,46.86,16.009,15.991,20.0]
[1673354344349,79.1591892,16.01,15.992,46.91]
[1673354344552,32.2991892,16.01,15.993,20.0]
[1673354344868,20.0,16.009,15.994,46.91]
[1673354345078,32.2991892,16.01,15.995,20.0]
[1673354345714,46.86,16.009,15.994,46.91]
[1673354345927,37.0,16.008,15.994,46.91]
[1673354346252,37.0,16.008,15.993,20.0]
[1673354347191,17.0,16.008,15.993,20.0]
[1673354347809,46.87,16.007,15.993,20.0]
[1673354348042,17.0,16.006,15.993,20.0]
[1673354348247,17.0,16.008,15.993,20.0]
[1673354348461,46.86,16.009,15.993,20.0]
[1673354350015,5.6591892,16.01,15.995,20.0]
[1673354350260,5.6591892,16.01,15.996,66.9]
[1673354350659,5.6591892,16.01,15.997,20.0]
[1673354350862,5.6591892,16.01,15.998,66.9]
[1673354351074,5.6591892,16.01,15.999,20.0]
[1673354351284,17.0,16.009,16.0,46.89]
[1673354351500,17.0,16.009,16.001,20.0]
[1673354352545,5.6591892,16.01,16.002,20.0]
[1673354353822,17.0,16.009,16.002,20.0]
[1673354354767,5.6591892,16.01,16.002,20.0]
[1673354356137,5.6591892,16.01,16.001,40.0]
[1673354356341,17.0,16.009,16.001,20.0]
[1673354356551,17.0,16.009,15.999,20.0]
[1673354356766,35.55825296,16.009,15.999,20.0]
[1673354358334,17.0,16.009,15.999,20.0]
[1673354363683,5.6591892,16.01,16.0,66.89]
[1673354363909,5.6591892,16.01,16.001,20.0]
[1673354371686,5.6591892,16.01,16.0,20.0]
[1673354372004,17.0,16.009,15.998,46.9]
[1673354372211,20.0,16.008,15.996,46.9]
[1673354372426,17.0,16.007,15.994,46.91]
[1673354372622,17.0,16.007,15.996,46.9]
[1673354372840,17.0,16.006,15.997,20.0]
[1673354373053,17.0,16.006,15.998,46.9]
[1673354373382,5.6591892,16.01,15.997,20.0]
[1673354373699,17.0,16.009,15.997,20.0]
[1673354373886,17.0,16.009,15.999,20.0]
[1673354374533,17.0,16.009,15.998,46.9]
[1673354374750,17.0,16.009,15.996,46.9]
[1673354374933,20.0,16.008,15.996,46.9]
[1673354375146,17.0,16.007,15.996,46.9]
[1673354376111,17.0,16.008,15.996,46.9]
[1673354379266,17.0,16.008,15.995,20.0]
[1673354380628,17.0,16.009,15.996,46.9]
[1673354380829,17.0,16.009,15.997,20.0]
[1673354382106,5.6591892,16.01,15.998,20.0]
[1673354382302,5.6591892,16.01,15.998,66.9]
[1673354382633,5.6591892,16.01,15.999,20.0]
[1673354382819,5.6591892,16.01,16.0,20.0]
[1673354383685,5.6591892,16.01,16.002,20.0]
[1673354385152,5.6591892,16.01,15.996,46.9]
[1673354385476,5.6591892,16.01,15.995,20.0]
[1673354385477,20.0,16.009,15.995,20.0]
[1673354385681,20.0,16.009,15.997,20.0]
[1673354386421,17.0,16.008,15.997,20.0]
[1673354386745,17.0,16.008,15.996,46.9]
[1673354387130,17.0,16.008,15.995,20.0]
[1673354387757,17.0,16.008,15.994,46.91]
[1673354388600,17.0,16.008,15.993,20.0]
[1673354388815,17.0,16.008,15.994,46.91]
[1673354389356,17.0,16.008,15.995,20.0]
[1673354389865,17.0,16.008,15.993,20.0]
[1673354390066,17.0,16.008,15.994,46.91]
[1673354391039,99.1291892,16.01,15.995,20.0]
[1673354391572,52.2691892,16.01,15.995,20.0]
[1673354391877,52.2691892,16.01,15.996,46.9]
[1673354392085,52.2691892,16.01,15.997,20.0]
[1673354392488,52.2691892,16.01,15.99,26.39]
[1673354392489,188.1,16.008,15.987,119.4233]
[1673354392698,26.61,16.0,15.987,119.4233]
[1673354392923,26.61,16.0,15.988,20.0]
[1673354393328,17.0,15.999,15.988,20.0]
[1673354393534,17.0,15.999,15.99,20.0]
[1673354394168,17.0,15.999,15.991,20.0]
[1673354398393,46.88,16.005,15.991,20.0]
[1673354398601,46.87,16.006,15.992,20.0]
[1673354398921,52.4391892,16.01,15.992,20.0]
[1673354398922,66.86,16.009,15.992,20.0]
[1673354400706,66.86,16.009,15.991,20.0]
[1673354401025,20.0,16.007,15.991,20.0]
[1673354401209,63.87,16.006,15.991,20.0]
[1673354402050,20.0,16.005,15.991,20.0]
[1673354402282,63.88,16.004,15.99,20.0]
[1673354403526,46.88,16.004,15.99,20.0]
[1673354404599,46.87,16.006,15.99,20.0]
[1673354406158,17.0,16.005,15.991,46.92]
[1673354406364,17.0,16.006,15.991,46.92]
[1673354406573,18.55825296,16.007,15.992,20.0]
[1673354406889,65.42825296,16.006,15.992,20.0]
[1673354407097,46.87,16.008,15.992,20.0]
[1673354408056,46.87,16.008,15.992,66.91]
[1673354408270,46.87,16.008,15.992,20.0]
[1673354408478,20.0,16.007,15.992,20.0]
[1673354408673,46.87,16.008,15.992,20.0]
[1673354408882,18.55825296,16.008,15.992,27.21514]
[1673354409094,5.6591892,16.01,15.994,20.0]
[1673354409304,5.6591892,16.01,15.995,46.9]
[1673354409515,5.6591892,16.01,15.996,20.0]
[1673354409731,5.6591892,16.01,15.998,20.0]
[1673354410168,5.6591892,16.01,15.999,20.0]
[1673354410364,5.6591892,16.01,16.0,20.0]
[1673354410576,5.6591892,16.01,16.0,66.89]
[1673354410790,5.6591892,16.01,16.001,20.0]
[1673354411098,5.6591892,16.01,16.002,20.0]
[1673354414780,5.6591892,16.01,16.002,66.88]
[1673354415210,5.6591892,16.01,16.002,20.0]
[1673354417404,5.6591892,16.01,16.004,20.0]
[1673354419002,5.6591892,16.01,16.002,66.88]
[1673354425940,5.6591892,16.01,16.002,46.88]
[1673354426131,5.6591892,16.01,16.002,20.0]
[1673354428661,5.6591892,16.01,16.003,46.88]
[1673354428994,5.6591892,16.01,16.004,20.0]
[1673354429199,5.6591892,16.01,16.005,46.88]
[1673354429387,5.6591892,16.01,16.003,46.88]
[1673354429808,5.6591892,16.01,16.002,66.88]
[1673354433296,5.6591892,16.01,16.003,16.37500671]
[1673354433497,5.6591892,16.01,16.005,20.0]
[1673354433708,5.6591892,16.01,16.006,46.87]
[1673354434229,5.6591892,16.01,16.007,20.0]
[1673354434642,5.6591892,16.01,16.008,20.0]
[1673354434855,5.6591892,16.01,16.009,46.86]
[1673354435073,5.6591892,16.01,16.009,66.86]
[1673354436209,0.0091892,16.01,16.009,66.86]
[1673354439595,0.0091892,16.01,16.009,20.0]
[1673354439794,0.0091892,16.01,16.009,40.0]
[1673354445479,0.0091892,16.01,16.007,20.0]
[1673354448740,0.0091892,16.01,16.009,20.0]
[1673354448938,0.0091892,16.01,16.009,40.0]
[1673354451575,0.0091892,16.01,16.009,86.86]
[1673354451786,0.0091892,16.01,16.009,40.0]
[1673354452835,0.0091892,16.01,16.009,20.0]
[1673354459140,0.0091892,16.01,16.005,20.0]
[1673354468394,0.0091892,16.01,16.005,66.88]
[1673354471029,0.0091892,16.01,16.006,16.37500671]
[1673354471354,0.0091892,16.01,16.007,66.87]
[1673354471674,0.0091892,16.01,16.008,20.0]
[1673354471860,0.0091892,16.01,16.009,46.86]
[1673354472067,0.0091892,16.01,16.009,66.86]
[1673354473545,0.0091892,16.01,16.009,83.23500671]
[1673354476499,0.0091892,16.01,16.009,66.86]
[1673354477426,0.0091892,16.01,16.009,83.23500671]
[1673354478608,0.0091892,16.01,16.009,66.86]
[1673354481661,0.0091892,16.01,16.009,83.23500671]
[1673354483342,0.0091892,16.01,16.009,36.37500671]
[1673354485542,0.0091892,16.01,16.009,20.0]
[1673354489965,0.0091892,16.01,16.009,36.37500671]
[1673354490914,0.0091892,16.01,16.009,20.0]
[1673354491427,0.0091892,16.01,16.009,36.37500671]
[1673354494072,0.0091892,16.01,16.009,178.09387346]
[1673354494267,0.0091892,16.01,16.009,221.39514737]
[1673354495000,0.0091892,16.01,16.009,219.47514737]
[1673354495210,0.0091892,16.01,16.009,164.28139798]
[1673354495640,0.0091892,16.01,16.009,97.40880062]
[1673354496479,0.0091892,16.01,16.009,143.83695793]
[1673354496694,0.0091892,16.01,16.009,192.97445403]
[1673354496912,0.0091892,16.01,16.009,194.89445403]
[1673354497142,0.0091892,16.01,16.009,214.89445403]
[1673354498054,24.970146,16.029,16.01,20.0]
[1673354498272,24.970146,16.029,16.02,26.38]
[1673354498478,24.970146,16.029,16.022,20.0]
[1673354499013,24.970146,16.029,16.022,36.8903186]
[1673354502060,24.970146,16.029,16.021,20.0]
[1673354507938,24.970146,16.029,16.021,36.8903186]
[1673354511741,20.0,16.028,16.01,26.35]
[1673354511951,44.31,16.027,16.01,26.35]
[1673354512261,20.0,16.025,16.011,20.0]
[1673354512465,66.82,16.025,16.011,20.0]
[1673354512676,20.0,16.025,16.011,20.0]
[1673354512886,66.82,16.025,16.011,20.0]
[1673354513731,20.0,16.023,16.011,20.0]
[1673354514895,66.82,16.025,16.012,16.8903186]
[1673354515210,66.82,16.025,16.013,20.0]
[1673354515615,66.82,16.025,16.014,16.8903186]
[1673354516025,46.81,16.027,16.013,20.0]
[1673354516237,46.81,16.027,16.015,20.0]
[1673354516865,46.79,16.033,16.02,26.61]
[1673354517080,66.78,16.036,16.021,20.0]
[1673354518549,20.0,16.033,16.021,20.0]
[1673354521603,20.0,16.033,16.019,20.0]
[1673354521812,17.0,16.028,16.02,20.0]
[1673354522050,46.8,16.032,16.02,20.0]
[1673354522243,46.79,16.033,16.021,20.0]
[1673354522764,52.4491892,16.034,16.02,20.0]
[1673354522964,17.0,16.028,16.02,20.0]
[1673354523187,20.0,16.033,16.02,20.0]
[1673354523707,52.4491892,16.034,16.021,20.0]
[1673354523916,5.6591892,16.034,16.021,20.0]
[1673354524128,5.6591892,16.034,16.021,36.8903186]
[1673354524348,5.6591892,16.034,16.022,46.83]
[1673354524557,5.6591892,16.034,16.023,20.0]
[1673354525079,5.6591892,16.034,16.021,20.0]
[1673354525293,46.79,16.033,16.02,20.0]
[1673354525688,46.79,16.033,16.018,20.0]
[1673354526243,5.6591892,16.034,16.02,20.0]
[1673354526427,46.79,16.033,16.02,40.0]
[1673354526640,46.79,16.033,16.02,20.0]
[1673354526877,20.0,16.032,16.02,20.0]
[1673354527391,63.81,16.028,16.015,16.8903186]
[1673354527594,63.81,16.028,16.006,20.0]
[1673354527804,63.81,16.028,16.006,36.8903186]
[1673354528010,63.81,16.028,16.006,16.8903186]
[1673354528226,20.0,16.027,16.006,16.8903186]
[1673354528430,63.81,16.026,16.006,16.8903186]
[1673354529166,20.0,16.019,16.006,16.8903186]
[1673354529379,17.0,16.018,16.006,16.8903186]
[1673354529920,17.0,16.018,16.005,46.88]
[1673354530113,17.0,16.018,16.006,36.8903186]
[1673354530651,17.0,16.018,16.006,20.0]
[1673354531060,26.61,16.02,16.006,20.0]
[1673354531061,17.0,16.019,16.006,20.0]
[1673354531274,17.0,16.019,16.007,20.0]
[1673354531491,63.83,16.019,16.005,66.88]
[1673354531694,63.83,16.019,16.002,46.88]
[1673354531915,20.0,16.018,16.002,46.88]
[1673354532227,63.84,16.017,16.003,20.0]
[1673354532442,20.0,16.016,16.003,20.0]
[1673354532639,17.0,16.015,16.003,20.0]
[1673354533483,17.0,16.016,16.003,20.0]
[1673354534754,63.84,16.017,16.003,20.0]
[1673354534964,20.0,16.016,16.003,20.0]
[1673354535174,17.0,16.015,16.001,20.0]
[1673354535387,46.85,16.014,16.0,50.0]
[1673354535702,37.0,16.013,16.0,50.0]
[1673354536006,20.0,16.011,16.0,50.0]
[1673354536220,17.0,16.01,16.0,50.0]
[1673354536623,17.0,16.011,16.0,50.0]
[1673354537060,46.42,16.01,16.0,50.0]
[1673354537277,17.0,16.009,16.0,50.0]
[1673354537472,46.87,16.008,16.0,50.0]
[1673354537684,37.0,16.007,16.0,50.0]
[1673354538633,83.87,16.007,16.0,50.0]
[1673354540313,46.87,16.007,16.0,50.0]
[1673354540518,46.86,16.009,16.0,50.0]
[1673354540737,46.85,16.012,16.001,20.0]
[1673354540935,46.85,16.015,16.003,20.0]
[1673354541146,46.83,16.019,16.004,46.88]
[1673354541474,46.84,16.017,16.004,46.88]
[1673354541674,46.84,16.017,16.003,20.0]
[1673354541884,46.84,16.017,16.002,46.88]
[1673354542423,17.0,16.015,16.002,46.88]
[1673354542639,46.84,16.017,16.002,46.88]
[1673354542953,66.83,16.019,16.003,20.0]
[1673354544003,17.0,16.017,16.003,20.0]
[1673354545688,66.83,16.019,16.003,20.0]
[1673354546416,36.83,16.019,16.003,20.0]
[1673354547347,36.83,16.019,16.005,20.0]
[1673354548314,17.0,16.018,16.005,20.0]
[1673354550937,17.0,16.019,16.005,20.0]
[1673354551688,26.43,16.02,16.005,20.0]
[1673354551904,46.83,16.022,16.005,36.8903186]
[1673354552095,46.83,16.022,16.006,66.87]
[1673354552418,46.81,16.026,16.011,20.0]
[1673354552632,46.81,16.028,16.012,46.85]
[1673354552829,20.0,16.027,16.012,46.85]
[1673354553797,17.0,16.026,16.012,46.85]
[1673354554714,46.82,16.025,16.0,164.52413358]
[1673354554925,26.64,16.02,16.0,26.8]
[1673354555142,63.83,16.019,16.0,26.8]
[1673354555357,63.83,16.019,16.003,66.88]
[1673354555567,63.83,16.019,16.003,20.0]
[1673354555777,20.0,16.018,16.003,20.0]
[1673354555989,17.0,16.017,16.004,46.88]
[1673354556524,17.0,16.018,16.004,46.88]
[1673354557131,17.0,16.018,16.002,66.88]